bitfinex/quotes_SOLUSD_20220118
["timestamp","ask_amount","ask_price","bid_price","bid_amount"]
[1642497134790,4.05433039,137.62,137.52,16.71]
[1642497134990,4.05433039,137.62,137.53,43.48412076]
[1642497135190,4.05433039,137.62,137.54,21.3523]
[1642497135390,4.05433039,137.62,137.55,0.25]
[1642497135591,16.25545358,137.7,137.56,10.45]
[1642497135592,4.05433039,137.65,137.56,10.45]
[1642497135892,4.05433039,137.65,137.57,0.25]
[1642497136291,44.96527236,137.64,137.57,43.91426933]
[1642497136692,44.96527236,137.64,137.57,60.81116933]
[1642497137892,2.906,137.67,137.57,61.07116933]
[1642497138094,4.05433039,137.68,137.57,61.07116933]
[1642497138095,4.05433039,137.68,137.57,133.44116933]
[1642497138397,4.05433039,137.68,137.57,150.12616933]
[1642497138595,4.05433039,137.68,137.58,1.64349315]
[1642497138793,4.05433039,137.68,137.61,10.8929]
[1642497138993,40.81151444,137.7,137.62,42.13607584]
[1642497139192,4.05433039,137.71,137.62,42.38607584]
[1642497139392,4.05433039,137.71,137.62,48.64607584]
[1642497140196,37.45276153,137.72,137.62,48.64607584]
[1642497140396,37.45276153,137.72,137.65,39.46388039]
[1642497140596,4.05433039,137.73,137.65,111.83388039]
[1642497140799,4.05433039,137.73,137.66,0.25]
[1642497141398,4.05433039,137.75,137.67,10.8898]
[1642497141601,4.05433039,137.75,137.68,45.87376338]
[1642497141800,4.05433039,137.75,137.68,52.38376338]
[1642497142398,4.42809398,137.76,137.68,52.38376338]
[1642497143498,4.42809398,137.76,137.7,10.8889]
[1642497143701,58.18145358,137.8,137.7,18.7529]
[1642497143899,58.18145358,137.8,137.71,0.25]
[1642497144099,5.80545358,137.8,137.71,0.25]
[1642497144500,5.80545358,137.8,137.73,10.8858]
[1642497144801,2.903,137.84,137.74,51.32045451]
[1642497145001,2.902,137.87,137.74,51.32045451]
[1642497145199,10.548735,137.85,137.74,57.58045451]
[1642497145600,49.58810611,137.83,137.77,10.8816]
[1642497145800,49.58810611,137.83,137.78,0.25]
[1642497146100,49.58810611,137.83,137.74,16.45]
[1642497146302,2.903,137.82,137.75,0.25]
[1642497146500,2.903,137.82,137.76,10.8848]
[1642497146700,49.58810611,137.83,137.76,10.8848]
[1642497146900,49.58810611,137.83,137.76,16.8848]
[1642497147106,55.58810611,137.83,137.71,10.45]
[1642497147301,3.153,137.82,137.71,16.45]
[1642497147701,9.153,137.82,137.71,6.0]
[1642497147902,9.153,137.82,137.7,46.83443558]
[1642497148102,9.153,137.82,137.74,49.61301853]
[1642497148303,3.153,137.82,137.75,0.25]
[1642497148504,2.903,137.84,137.75,0.25]
[1642497148703,10.548735,137.85,137.75,0.25]
[1642497148906,16.548735,137.85,137.75,0.25]
[1642497149305,39.34135553,137.84,137.77,46.09141461]
[1642497149502,42.24335553,137.84,137.77,46.09141461]
[1642497149704,42.24335553,137.84,137.78,0.25]
[1642497150107,42.24335553,137.84,137.77,52.09141461]
[1642497150306,42.24335553,137.84,137.77,6.0]
[1642497150810,0.25,137.83,137.76,16.8846]
[1642497151008,2.902,137.82,137.76,6.0]
[1642497151210,38.09225375,137.81,137.73,81.84646712]
[1642497151411,2.903,137.8,137.74,0.25]
[1642497151611,2.903,137.82,137.74,11.1364]
[1642497151809,2.903,137.82,137.74,17.3964]
[1642497152508,2.903,137.82,137.74,17.1364]
[1642497152710,0.25,137.81,137.74,16.8864]
[1642497152915,2.903,137.8,137.66,22.7692]
[1642497153112,11.613,137.8,137.66,22.7692]
[1642497153311,0.25,137.79,137.67,0.25]
[1642497153611,43.43271795,137.77,137.67,45.01994963]
[1642497153811,0.25,137.76,137.67,45.01994963]
[1642497154014,2.904,137.78,137.68,83.2613]
[1642497154213,2.904,137.79,137.68,83.2613]
[1642497154416,6.0,137.78,137.69,0.25]
[1642497154813,8.904,137.81,137.69,0.25]
[1642497155013,51.35412904,137.81,137.69,0.25]
[1642497155213,0.25,137.8,137.72,41.64529531]
[1642497155414,0.25,137.8,137.72,41.90529531]
[1642497155714,0.25,137.8,137.73,0.25]
[1642497156112,0.25,137.8,137.72,10.8878]
[1642497156113,11.1383,137.8,137.72,10.8878]
[1642497156313,2.903,137.79,137.66,22.7692]
[1642497156515,8.71,137.78,137.66,22.7692]
[1642497156718,75.274,137.77,137.62,32.2957]
[1642497156915,51.8152,137.77,137.62,38.2957]
[1642497157115,39.64368123,137.76,137.63,34.87930436]
[1642497157318,2.904,137.75,137.66,10.8926]
[1642497157515,2.904,137.75,137.67,40.68064691]
[1642497157715,0.25,137.74,137.67,40.68064691]
[1642497158116,0.25,137.74,137.68,0.25]
[1642497158816,0.25,137.74,137.68,10.8917]
[1642497159019,2.904,137.73,137.62,29.5857]
[1642497159218,2.904,137.73,137.62,6.0]
[1642497159416,0.25,137.72,137.62,6.0]
[1642497159618,2.904,137.71,137.6,6.0]
[1642497159819,37.93082401,137.7,137.61,36.78944721]
[1642497160019,37.93082401,137.7,137.62,10.8964]
[1642497160217,43.93082401,137.7,137.62,10.8964]
[1642497160421,43.68082401,137.7,137.62,16.8964]
[1642497161319,3.154,137.69,137.62,16.8964]
[1642497161522,9.154,137.69,137.6,10.8974]
[1642497161720,16.649,137.69,137.56,8.71]
[1642497162121,8.71,137.68,137.53,10.35492451]
[1642497162421,10.8994,137.66,137.56,36.3281]
[1642497162621,49.56697892,137.66,137.57,39.62814789]
[1642497162821,0.25,137.65,137.57,39.62814789]
[1642497163020,3.156,137.65,137.57,39.62814789]
[1642497163419,2.906,137.65,137.57,39.62814789]
[1642497163621,0.25,137.64,137.59,10.898]
[1642497163820,0.25,137.64,137.57,39.62814789]
[1642497164022,0.25,137.64,137.54,42.11671835]
[1642497164227,2.907,137.63,137.54,10.13909384]
[1642497164623,0.25,137.62,137.55,10.9014]
[1642497164824,0.25,137.62,137.55,11.4114]
[1642497165022,0.25,137.62,137.56,35.19364661]
[1642497166023,2.907,137.65,137.57,11.1504]
[1642497166323,26.669,137.67,137.57,17.0794]
[1642497166526,23.763,137.67,137.57,24.72432451]
[1642497166724,73.18411371,137.68,137.57,24.98432451]
[1642497166922,79.18411371,137.68,137.57,24.98432451]
[1642497167524,75.12978332,137.68,137.59,36.92411711]
[1642497167824,2.906,137.67,137.58,4.03303036]
[1642497168028,8.71,137.66,137.58,4.03303036]
[1642497168225,2.906,137.65,137.58,4.03303036]
[1642497168424,14.0567,137.65,137.58,4.03303036]
[1642497168627,9.156,137.65,137.58,4.03303036]
[1642497168825,6.25,137.65,137.59,43.005577]
[1642497169027,0.25,137.65,137.59,43.005577]
[1642497169424,0.25,137.66,137.59,43.005577]
[1642497169625,0.25,137.66,137.59,43.265577]
[1642497169825,8.906,137.67,137.59,43.265577]
[1642497170027,0.25,137.66,137.59,43.005577]
[1642497170225,0.25,137.66,137.6,10.898]
[1642497170428,0.25,137.66,137.59,43.265577]
[1642497170626,2.906,137.65,137.55,4.13909384]
[1642497170828,0.25,137.64,137.57,0.25]
[1642497171026,8.906,137.65,137.57,0.25]
[1642497171027,2.906,137.63,137.57,0.25]
[1642497171227,3.156,137.64,137.57,0.25]
[1642497171428,2.906,137.66,137.57,11.1504]
[1642497171826,2.906,137.69,137.57,19.05532451]
[1642497172026,4.05433039,137.69,137.57,19.05532451]
[1642497172427,93.32143039,137.69,137.57,18.54532451]
[1642497172625,48.51809093,137.68,137.59,10.8992]
[1642497172825,72.37,137.67,137.54,4.13909384]
[1642497173027,11.616,137.66,137.54,4.13909384]
[1642497173426,0.25,137.65,137.55,4.13909384]
[1642497173627,0.25,137.65,137.56,49.56251766]
[1642497173827,0.25,137.65,137.58,10.898]
[1642497174026,2.906,137.67,137.59,41.70925901]
[1642497174228,6.0,137.67,137.59,41.70925901]
[1642497174426,6.0,137.67,137.6,0.25]
[1642497174626,45.61209093,137.68,137.6,0.25]
[1642497174830,0.25,137.67,137.6,0.25]
[1642497175226,0.25,137.67,137.57,8.71]
[1642497175430,2.906,137.66,137.58,4.13909384]
[1642497175829,0.25,137.65,137.58,4.13909384]
[1642497176031,2.906,137.64,137.58,4.13909384]
[1642497176228,2.906,137.64,137.54,4.13909384]
[1642497176428,47.05380176,137.63,137.55,56.6767527]
[1642497176831,53.05380176,137.63,137.55,56.6767527]
[1642497177430,2.907,137.62,137.53,4.13909384]
[1642497177632,2.907,137.62,137.53,4.39909384]
[1642497177830,0.25,137.61,137.53,4.39909384]
[1642497178232,0.25,137.61,137.53,0.26]
[1642497178432,0.25,137.61,137.54,11.1532]
[1642497178632,0.25,137.61,137.54,10.9032]
[1642497179033,8.907,137.62,137.55,0.25]
[1642497179240,6.0,137.62,137.55,0.25]
[1642497179437,6.0,137.62,137.55,1.89085964]
[1642497179634,6.0,137.63,137.57,10.9005]
[1642497179835,2.907,137.66,137.58,0.25]
[1642497180037,17.85973039,137.67,137.58,0.25]
[1642497180233,17.85973039,137.67,137.55,16.61085964]
[1642497180234,23.85973039,137.67,137.55,16.61085964]
[1642497180461,40.86292995,137.66,137.56,4.39096867]
[1642497180641,10.9018,137.64,137.56,4.14096867]
[1642497180834,46.46632122,137.63,137.56,4.14096867]
[1642497181034,46.46632122,137.63,137.56,50.68202656]
[1642497181235,52.46632122,137.63,137.56,50.68202656]
[1642497181436,8.906,137.63,137.57,0.25]
[1642497181634,0.25,137.62,137.56,46.54105789]
[1642497181834,0.25,137.64,137.57,11.1503]
[1642497182036,0.25,137.64,137.57,10.9003]
[1642497182434,0.25,137.64,137.56,46.54105789]
[1642497182435,38.99716591,137.64,137.56,46.54105789]
[1642497182635,2.906,137.63,137.54,36.3343]
[1642497182835,0.25,137.62,137.54,36.3343]
[1642497183036,2.907,137.61,137.54,40.47339384]
[1642497183436,0.25,137.6,137.55,10.9017]
[1642497183637,40.7898854,137.6,137.55,10.9017]
[1642497184338,46.7898854,137.6,137.55,10.9017]
[1642497184737,40.7898854,137.6,137.55,10.9017]
[1642497185136,46.7898854,137.6,137.55,10.9017]
[1642497185939,46.7898854,137.6,137.54,45.60466556]
[1642497186139,49.6968854,137.6,137.54,45.60466556]
[1642497188440,49.6968854,137.6,137.54,56.50776556]
[1642497188640,46.7898854,137.6,137.54,56.50776556]
[1642497190248,46.7898854,137.6,137.54,10.9031]
[1642497192248,46.7898854,137.6,137.55,0.25]
[1642497192646,46.7898854,137.6,137.55,11.152]
[1642497193047,46.7898854,137.6,137.55,10.902]
[1642497193248,46.7898854,137.6,137.52,4.13909384]
[1642497193448,52.4638854,137.6,137.53,0.25]
[1642497193648,2.907,137.59,137.53,0.25]
[1642497193848,0.25,137.58,137.52,4.13909384]
[1642497194248,11.1576,137.58,137.52,4.13909384]
[1642497194450,0.25,137.58,137.52,4.13909384]
[1642497194649,0.25,137.58,137.52,10.9043]
[1642497195251,8.907,137.59,137.53,0.25]
[1642497195470,6.0,137.59,137.53,0.25]
[1642497195869,46.5398854,137.6,137.51,39.85644124]
[1642497196069,46.5398854,137.6,137.52,0.25]
[1642497196271,2.907,137.59,137.52,0.25]
[1642497196672,8.907,137.59,137.5,11.13909384]
[1642497196869,0.25,137.58,137.5,11.13909384]
[1642497197070,2.908,137.57,137.5,11.13909384]
[1642497197270,0.25,137.56,137.5,11.13909384]
[1642497197472,2.908,137.55,137.5,11.13909384]
[1642497197769,6.0,137.55,137.5,57.84175748]
[1642497198171,6.0,137.55,137.5,11.13909384]
[1642497198372,0.25,137.54,137.5,11.13909384]
[1642497198571,2.908,137.55,137.5,11.13909384]
[1642497198771,19.8163,137.55,137.5,11.13909384]
[1642497198974,19.8163,137.55,137.5,7.0]
[1642497199174,6.0,137.55,137.5,7.0]
[1642497199372,0.25,137.54,137.5,7.0]
[1642497200375,0.25,137.55,137.5,7.0]
[1642497200576,3.158,137.55,137.5,7.0]
[1642497201178,9.158,137.55,137.5,7.0]
[1642497202480,20.0664,137.55,137.5,7.0]
[1642497203177,9.158,137.55,137.5,7.0]
[1642497203379,6.0,137.55,137.5,7.0]
[1642497203577,6.0,137.55,137.5,7.26]
[1642497203777,26.7489,137.59,137.51,0.25]
[1642497203979,23.8409,137.59,137.51,6.025]
[1642497204180,27.3084,137.6,137.51,6.025]
[1642497204379,73.40191634,137.6,137.52,39.44769056]
[1642497204879,49.00151634,137.6,137.53,0.25]
[1642497205081,49.00151634,137.6,137.53,11.1515]
[1642497205279,55.00151634,137.6,137.53,11.1515]
[1642497205679,0.25,137.59,137.53,11.1515]
[1642497206081,11.1548,137.59,137.51,10.9048]
[1642497206282,2.908,137.58,137.5,11.13909384]
[1642497206780,0.25,137.57,137.5,11.13909384]
[1642497206980,43.75504677,137.55,137.5,11.13909384]
[1642497207182,2.908,137.54,137.5,7.0]
[1642497207586,0.25,137.53,137.5,7.0]
[1642497207783,6.06439994,137.52,137.5,7.0]
[1642497207985,2.908,137.51,137.5,7.0]
[1642497208583,47.20721013,137.52,137.5,7.0]
[1642497209184,0.25,137.51,137.5,7.0]
[1642497209686,53.20721013,137.52,137.5,7.0]
[1642497209885,0.25,137.51,137.5,7.0]
[1642497210086,2.908,137.51,137.5,7.0]
[1642497210284,6.0,137.51,137.5,7.0]
[1642497210485,6.06439994,137.52,137.5,7.0]
[1642497210685,12.06439994,137.52,137.5,7.0]
[1642497211086,6.06439994,137.52,137.5,7.0]
[1642497211290,0.25,137.51,137.5,7.0]
[1642497211786,46.90090114,137.51,137.5,7.0]
[1642497211989,3.158,137.51,137.5,7.0]
[1642497212996,49.67006835,137.51,137.5,7.0]
[1642497213191,6.06439994,137.52,137.5,7.0]
[1642497214090,12.06439994,137.52,137.5,7.0]
[1642497215592,6.0,137.52,137.5,7.0]
[1642497215791,29.9205,137.56,137.5,7.0]
[1642497216391,47.63900069,137.55,137.5,7.0]
[1642497216593,2.908,137.54,137.5,7.0]
[1642497216791,9.158,137.54,137.5,7.0]
[1642497217592,6.25,137.54,137.5,7.0]
[1642497217792,47.63900069,137.55,137.5,17.9061]
[1642497217994,23.9205,137.56,137.5,17.9061]
[1642497218195,23.9205,137.56,137.5,23.5961]
[1642497218393,2.908,137.57,137.51,0.25]
[1642497218595,24.1249,137.58,137.51,0.25]
[1642497218794,30.1249,137.58,137.51,0.25]
[1642497218993,43.69666383,137.57,137.52,10.9032]
[1642497219194,2.908,137.57,137.53,45.13750512]
[1642497219393,1.15296166,137.6,137.53,45.38750512]
[1642497219592,4.05433039,137.62,137.53,45.64750512]
[1642497219793,4.05433039,137.62,137.53,45.38750512]
[1642497219997,2.907,137.61,137.54,10.902]
[1642497220194,46.92030732,137.6,137.54,10.902]
[1642497220394,46.92030732,137.6,137.5,7.0]
[1642497220597,2.908,137.59,137.5,11.13909384]
[1642497220795,8.908,137.59,137.5,11.13909384]
[1642497221195,0.25,137.58,137.51,48.95833255]
[1642497221398,8.908,137.59,137.52,10.904]
[1642497221595,0.25,137.58,137.52,10.904]
[1642497221824,0.25,137.58,137.5,7.0]
[1642497222025,2.908,137.57,137.5,7.0]
[1642497222424,8.908,137.57,137.5,7.0]
[1642497222623,45.20217805,137.56,137.5,44.83233996]
[1642497222824,51.20217805,137.56,137.5,17.9061]
[1642497223025,51.20217805,137.56,137.5,7.0]
[1642497223725,2.908,137.55,137.5,7.0]
[1642497223925,10.909,137.54,137.5,7.0]
[1642497224126,35.98850421,137.53,137.5,7.0]
[1642497224325,6.06439994,137.52,137.5,7.0]
[1642497224926,2.908,137.57,137.5,7.0]
[1642497225126,2.908,137.58,137.45,5.78112496]
[1642497225327,65.0,137.55,137.43,0.03791311]
[1642497225626,13.388,137.54,137.42,4.25138565]
[1642497225830,21.42705272,137.54,137.42,4.25138565]
[1642497226027,26.26165272,137.53,137.42,4.25138565]
[1642497226229,130.95,137.49,137.42,4.25138565]
[1642497226428,37.39,137.48,137.4,397.03810131]
[1642497226629,130.95,137.47,137.4,397.03810131]
[1642497226829,13.64,137.46,137.4,377.26261402]
[1642497227029,203.32,137.45,137.4,377.26261402]
[1642497227232,25.3807717,137.43,137.4,342.39001402]
[1642497227432,19.45439994,137.42,137.4,342.39001402]
[1642497227629,19.70439994,137.42,137.38,0.36381334]
[1642497227829,25.70439994,137.42,137.38,0.36381334]
[1642497229632,36.62279994,137.42,137.38,0.36381334]
[1642497229832,167.57279994,137.42,137.38,0.36381334]
[1642497231434,156.65439994,137.42,137.38,0.36381334]
[1642497232235,25.45439994,137.42,137.38,0.36381334]
[1642497232435,22.54439994,137.42,137.38,0.36381334]
[1642497233237,57.52300822,137.42,137.38,0.36381334]
[1642497235041,68.44150822,137.42,137.38,0.36381334]
[1642497235241,76.29750822,137.42,137.38,0.36381334]
[1642497235442,3.161,137.41,137.38,0.36381334]
[1642497235641,39.0111006,137.39,137.38,0.36381334]
[1642497235841,49.7411006,137.39,137.38,0.36381334]
[1642497236244,10.48,137.39,137.38,0.36381334]
[1642497237546,44.42021507,137.39,137.38,0.36381334]
[1642497237744,44.42021507,137.39,137.3,36.3911]
[1642497237945,44.42021507,137.39,137.29,48.8292]
[1642497238345,0.25,137.38,137.29,48.8292]
[1642497238545,10.48,137.37,137.29,48.8292]
[1642497238748,39.68568047,137.36,137.27,31.25863571]
[1642497238949,10.48,137.37,137.31,4.14750651]
[1642497239548,0.25,137.36,137.31,4.14750651]
[1642497240149,10.48,137.37,137.31,15.06740651]
[1642497240780,10.48,137.37,137.32,0.25]
[1642497241178,10.48,137.37,137.32,4.39750651]
[1642497241379,10.48,137.37,137.33,36.19656027]
[1642497241778,10.48,137.37,137.34,0.25]
[1642497242077,10.48,137.37,137.33,36.19656027]
[1642497242277,10.48,137.37,137.34,0.25]
[1642497242476,10.48,137.4,137.34,11.1677]
[1642497243376,10.48,137.4,137.34,10.9177]
[1642497243776,10.48,137.4,137.35,4.14687295]
[1642497243980,10.48,137.4,137.36,48.23812803]
[1642497244378,10.48,137.4,137.36,10.9156]
[1642497244779,10.48,137.4,137.37,0.25]
[1642497245380,46.17809005,137.44,137.37,11.1652]
[1642497245580,13.391,137.44,137.38,41.83553918]
[1642497245781,24.4852,137.45,137.39,0.25]
[1642497245982,13.39,137.46,137.39,0.25]
[1642497246380,19.39,137.46,137.39,0.25]
[1642497246582,36.30970263,137.45,137.39,0.25]
[1642497246882,46.78970263,137.45,137.39,0.25]
[1642497247281,10.48,137.45,137.39,11.1622]
[1642497247981,10.48,137.45,137.39,10.9122]
[1642497248183,43.58306486,137.44,137.39,10.9122]
[1642497248682,43.58306486,137.44,137.38,10.9147]
[1642497248884,10.48,137.45,137.39,0.25]
[1642497249786,13.39,137.48,137.4,10.9122]
[1642497249982,10.48,137.48,137.41,0.25]
[1642497250184,2.91,137.51,137.41,0.25]
[1642497250382,10.48,137.52,137.41,0.25]
[1642497250782,39.09407163,137.51,137.41,36.0441827]
[1642497250982,2.908,137.5,137.43,10.9086]
[1642497251384,2.908,137.5,137.44,0.25]
[1642497251785,8.908,137.5,137.41,36.3619]
[1642497251982,2.908,137.5,137.42,0.25]
[1642497252183,2.908,137.5,137.42,11.1607]
[1642497252785,0.25,137.49,137.42,11.1607]
[1642497253188,0.25,137.49,137.42,13.23325447]
[1642497253886,37.10818856,137.47,137.42,2.32255447]
[1642497254290,0.25,137.46,137.42,2.32255447]
[1642497255693,2.91,137.48,137.42,2.32255447]
[1642497255886,82.85,137.49,137.42,2.32255447]
[1642497256089,85.76,137.49,137.42,2.32255447]
[1642497256691,118.60916238,137.48,137.42,13.23365447]
[1642497257292,0.25,137.47,137.42,2.32255447]
[1642497257692,10.73,137.47,137.42,2.32255447]
[1642497258095,10.01048942,137.47,137.42,2.32255447]
[1642497258492,10.01048942,137.47,137.42,13.23385447]
[1642497258694,10.01048942,137.47,137.42,11.1613]
[1642497259094,10.01048942,137.47,137.42,0.25]
[1642497259495,10.01048942,137.47,137.42,2.32255447]
[1642497259695,12.92048942,137.47,137.42,2.07255447]
[1642497260194,18.92048942,137.47,137.41,2.07255447]
[1642497260394,0.25,137.46,137.41,2.07255447]
[1642497260597,13.39,137.45,137.41,2.07255447]
[1642497260793,0.25,137.44,137.41,2.07255447]
[1642497260995,8.97439994,137.43,137.41,2.07255447]
[1642497261195,8.97439994,137.43,137.38,2.07255447]
[1642497261398,8.97439994,137.43,137.38,48.3378393]
[1642497261999,8.97439994,137.43,137.39,0.25]
[1642497262295,8.97439994,137.43,137.38,48.3378393]
[1642497262296,6.06439994,137.43,137.38,48.3378393]
[1642497262895,13.391,137.44,137.39,2.07255447]
[1642497263295,19.391,137.44,137.39,2.07255447]
[1642497263496,16.48,137.44,137.39,2.07255447]
[1642497263695,16.48,137.44,137.4,0.25]
[1642497263995,16.48,137.44,137.39,2.07255447]
[1642497264395,19.39,137.44,137.39,2.07255447]
[1642497264598,19.39,137.44,137.4,2.07255447]
[1642497265596,30.3069,137.44,137.39,2.07255447]
[1642497265796,74.15905272,137.43,137.39,2.07255447]
[1642497265997,41.65230866,137.41,137.39,2.07255447]
[1642497266198,19.45539994,137.4,137.39,2.07255447]
[1642497266396,19.70539994,137.4,137.39,2.07255447]
[1642497266598,19.70539994,137.4,137.36,2.07255447]
[1642497267200,36.62539994,137.4,137.36,2.07255447]
[1642497267398,108.99539994,137.4,137.36,2.07255447]
[1642497267799,36.62539994,137.4,137.36,2.07255447]
[1642497268200,19.45539994,137.4,137.36,2.07255447]
[1642497268600,19.45539994,137.4,137.34,2.07255447]
[1642497268801,0.25,137.39,137.34,2.07255447]
[1642497269002,10.73,137.39,137.34,2.07255447]
[1642497269402,10.48,137.39,137.35,2.07255447]
[1642497269804,39.97358688,137.38,137.35,2.07255447]
[1642497270003,6.06439994,137.37,137.35,2.07255447]
[1642497270403,6.06439994,137.37,137.34,2.07255447]
[1642497272905,6.06439994,137.37,137.35,0.25]
[1642497273108,6.06439994,137.37,137.35,11.1672]
[1642497273906,6.06439994,137.37,137.35,12.98975447]
[1642497274530,10.48,137.39,137.35,12.98975447]
[1642497274732,13.391,137.43,137.38,10.9142]
[1642497274937,10.48,137.43,137.38,10.9142]
[1642497275333,42.20663108,137.42,137.38,10.9142]
[1642497276435,2.911,137.41,137.38,10.9142]
[1642497276635,42.20663108,137.42,137.38,10.9142]
[1642497276835,10.48,137.43,137.38,10.9142]
[1642497277034,16.48,137.43,137.38,10.9142]
[1642497277835,57.31447243,137.43,137.38,10.9142]
[1642497278544,57.31447243,137.43,137.38,12.98675447]
[1642497278737,63.31447243,137.43,137.38,12.98675447]
[1642497279642,16.48,137.43,137.38,12.98675447]
[1642497280643,36.49950782,137.42,137.38,12.98675447]
[1642497280842,42.49950782,137.42,137.38,2.07255447]
[1642497281444,6.0,137.42,137.38,2.07255447]
[1642497281846,2.911,137.42,137.38,2.07255447]
[1642497282145,2.911,137.42,137.37,2.07255447]
[1642497282451,8.911,137.42,137.37,12.98785447]
[1642497282845,8.911,137.42,137.37,2.07255447]
[1642497284947,0.25,137.41,137.37,2.07255447]
[1642497285148,2.911,137.4,137.37,2.07255447]
[1642497285347,6.06439994,137.39,137.37,2.07255447]
[1642497286148,6.06439994,137.39,137.35,2.07255447]
[1642497286750,16.48,137.42,137.36,0.25]
[1642497286951,6.0,137.42,137.36,0.25]
[1642497287148,13.391,137.44,137.36,2.32255447]
[1642497287351,10.48,137.44,137.36,2.32255447]
[1642497287949,10.48,137.44,137.37,10.9141]
[1642497288149,3.161,137.43,137.37,46.77709482]
[1642497288350,3.161,137.43,137.38,2.07255447]
[1642497288549,8.911,137.43,137.38,2.07255447]
[1642497288748,2.911,137.43,137.38,2.07255447]
[1642497289151,2.911,137.43,137.38,12.98695447]
[1642497289551,10.48,137.44,137.38,12.98695447]
[1642497289751,10.48,137.44,137.37,35.86299482]
[1642497289952,10.48,137.44,137.38,0.25]
[1642497290456,0.25,137.43,137.38,0.25]
[1642497290653,0.25,137.43,137.38,2.07255447]
[1642497290853,2.911,137.42,137.38,2.07255447]
[1642497291255,0.25,137.41,137.38,2.07255447]
[1642497291456,6.06439994,137.4,137.38,2.07255447]
[1642497291655,6.06439994,137.4,137.37,37.04977571]
[1642497292254,6.06439994,137.4,137.37,2.07255447]
[1642497292857,6.06439994,137.4,137.38,0.25]
[1642497294357,6.06439994,137.4,137.37,45.95429077]
[1642497294757,6.06439994,137.4,137.37,2.07255447]
[1642497294959,13.04939994,137.4,137.37,2.07255447]
[1642497295158,0.25,137.39,137.37,2.07255447]
[1642497295360,3.161,137.39,137.37,2.07255447]
[1642497295759,45.19375719,137.39,137.37,2.07255447]
[1642497295957,10.48,137.38,137.37,2.07255447]
[1642497296157,10.48,137.38,137.34,2.07255447]
[1642497296158,13.391,137.38,137.34,2.07255447]
[1642497297162,10.48,137.38,137.34,2.07255447]
[1642497297761,10.48,137.38,137.35,0.25]
[1642497298166,10.48,137.38,137.33,2.07255447]
[1642497298663,10.48,137.38,137.34,0.25]
[1642497299064,51.89356988,137.38,137.34,0.25]
[1642497299264,51.89356988,137.38,137.34,2.32255447]
[1642497300166,10.48,137.38,137.34,2.32255447]
[1642497300797,10.48,137.38,137.34,13.24025447]
[1642497301395,10.48,137.38,137.35,36.36839876]
[1642497301796,10.48,137.38,137.36,0.25]
[1642497302193,10.48,137.38,137.35,2.07255447]
[1642497302392,6.06439994,137.37,137.35,2.07255447]
[1642497303193,6.06439994,137.37,137.33,4.14726589]
[1642497303194,35.90752485,137.36,137.33,4.14726589]
[1642497303396,38.81952485,137.36,137.34,2.07382266]
[1642497303793,6.06439994,137.35,137.34,2.07382266]
[1642497304199,12.06439994,137.35,137.34,2.07382266]
[1642497304596,12.06439994,137.35,137.3,4.14726589]
[1642497304795,12.06439994,137.35,137.29,4.14726589]
[1642497305195,22.54439994,137.35,137.29,4.14726589]
[1642497305395,0.25,137.34,137.29,4.14726589]
[1642497305595,13.392,137.33,137.23,68.8087216]
[1642497305797,40.55363326,137.32,137.24,49.26879597]
[1642497305997,10.48,137.33,137.25,5.72282815]
[1642497306795,10.48,137.33,137.25,22.64772815]
[1642497307195,10.48,137.33,137.25,16.9249]
[1642497307394,10.48,137.33,137.26,0.25]